Cogmind - Beta 13 X1 @@@ ROGUE MODE // 2023.09.24 @ 14:10:06 Player: DuckBoy Result: Destroyed by D-53 Grenadier with Mini Grenade Launcher Performance ------------- Evolutions (2) 1000 Regions Visited (5) 1000 Robots Destroyed (87) 435 Value Destroyed (2394) 2394 Prototype IDs (2) 40 Alien Tech Used (0) 0 Bonus (179) 179 TOTAL SCORE: 5048 Bonus ------- Entered Garrisons 200 Friendly Fire -21 Cogmind --------- Core Integrity 0/550 Matter 300/300 Energy 82/100 System Corruption 1% Temperature Cool (1) Movement Core (400) Ox7 Location -8/Garrison Parts ------- > --- POWER (1) -------- (None) > --- PROPULSION (2) --- (None) > --- UTILITY (6) ------ Large Storage Unit Advanced Visual Processing Unit Improved Signal Interpreter Armor Integrity Analyzer Transmission Jammer System Shield > --- WEAPON (2) ------- Katana > --- INVENTORY (15) --- Improved Ion Engine Light Treads Light Treads Light Treads Armored Treads Aluminum Leg Wheel Compact Wheel Improved Cooling System High-capacity Storage Unit Huge Storage Unit Heavy Assault Rifle Mini Grenade Launcher Mace Peak State ------------ > --- POWER ------------ Improved Deuterium Engine > --- PROPULSION ------- Improved Carbon-fiber Leg Improved Carbon-fiber Leg > --- UTILITY ---------- Improved Cooling System Large Storage Unit Advanced Visual Processing Unit Improved Signal Interpreter Armor Integrity Analyzer System Shield > --- WEAPON ----------- Improved EM Shotgun Katana > --- INVENTORY -------- Improved Ion Engine Light Treads Light Treads Light Treads Armored Treads Wheel Compact Wheel High-capacity Storage Unit Transmission Jammer Shock Rifle Heavy Assault Rifle Mini Grenade Launcher Mace [Rating: 38] Favorites ----------- Power Ion Engine Engine Ion Engine Power Core Light Nuclear Core Propulsion Improved Treads Treads Improved Treads Leg Improved Carbon-fiber Leg Wheel Compact Wheel Utility Large Storage Unit Device Heat Sink Storage Large Storage Unit Processor Armor Integrity Analyzer Hackware Hacking Suite Protection Light Armor Plating Weapon Medium Laser Energy Gun Medium Laser Energy Cannon Light EM Pulse Cannon Ballistic Gun Gauss Rifle Launcher Grenade Launcher Impact Weapon Mace Slashing Weapon Katana Build | -11 -10 -9 -9 -8 -8 ------- Run | Jun Mat Mat Min Mat Gar Slots Evolved 4 | . . 2 . 2 . Power . | . . . . . . Propulsion . | . . . . . . Utility 4 | . . 2 . 2 . Weapon . | . . . . . . Parts Attached 82 | 6 4 23 17 29 3 Power 10 | 1 1 2 3 3 . Engine 9 | 1 1 2 3 2 . Core 1 | . . . . 1 . Reactor . | . . . . . . Propulsion 31 | 2 . 12 7 10 . Treads 20 | . . 10 3 7 . Leg 3 | . . . . 3 . Wheel 8 | 2 . 2 4 . . Hover . | . . . . . . Flight . | . . . . . . Utility 19 | 1 1 4 3 9 1 Device 4 | . . 1 . 2 1 Storage 2 | 1 1 . . . . Processor 3 | . . . . 3 . Hackware 3 | . . 2 . 1 . Protection 7 | . . 1 3 3 . Artifact . | . . . . . . Weapon 22 | 2 2 5 4 7 2 Energy Gun 7 | 1 1 3 . 1 1 Energy Cannon 2 | . . . 2 . . Ballistic Gun 7 | 1 . 1 . 5 . Ballistic Cannon . | . . . . . . Launcher 2 | . 1 1 . . . Special Weapon . | . . . . . . Impact Weapon 2 | . . . 2 . . Slashing Weapon 2 | . . . . 1 1 Piercing Weapon . | . . . . . . Special Melee Weapon . | . . . . . . Unidentified Prototypes 2 | . . 1 . 1 . Parts Lost 36 | . 1 4 10 16 5 Power 7 | . 1 . 2 3 1 Propulsion 7 | . . . 2 3 2 Utility 11 | . . 1 3 7 . Weapon 11 | . . 3 3 3 2 Highest Loss Streak 9 | . 1 2 7 9 4 To Critical Strikes . | . . . . . . Average Slot Usage (%) 93 | . 85 94 95 90 99 Engine 8 | . 14 11 10 4 8 Treads 10 | . . 19 8 6 . Leg 3 | . . . . 6 17 Wheel 6 | . 28 2 11 5 . Device 9 | . . 10 11 9 9 Storage 10 | . 14 11 11 9 9 Processor 4 | . . . . 8 27 Hackware 11 | . . 13 11 11 9 Protection 6 | . . 4 9 8 . Energy Gun 6 | . 13 11 . 2 8 Energy Cannon 1 | . . . 11 1 . Ballistic Gun 8 | . 14 10 . 10 8 Impact Weapon 1 | . . . 9 1 . Naked Turns . | . . . . . . Heaviest Build 44 | 14 34 44 43 43 38 Greatest Support 46 | 32 32 46 46 43 36 Greatest Overweight (x) 2 | 1 1 1 2 2 1 Average Overweight (x) . | . . . . . . Largest Inventory Capacity 15 | 8 15 15 15 15 15 Average Capacity 14 | 7 13 15 15 15 15 Most Carried 15 | 4 6 15 15 15 14 Average Carried 12 | 1 5 13 11 12 13 Final Capacity 15 | 8 15 15 15 15 15 Final Carried 15 | 4 6 15 11 14 14 Class Distribution -------------------- 50% | Scavenger-Mutant 33% | Mutant 15% | Hacker-Mutant Dominant Class ---------------- Mutant | -10/Materials Scavenger-Mutant | -9/Materials Mutant | -9/Mines Scavenger-Mutant | -8/Materials Scavenger-Mutant | -8/Garrison Resources | -11 -10 -9 -9 -8 -8 ----------- Run | Jun Mat Mat Min Mat Gar Matter Collected 1775 | 200 195 450 207 675 48 Remotely . | . . . . . . Salvage Created 3312 | . 438 908 178 1624 164 Parts 201 | . 24 69 6 90 12 Haulers Intercepted 3 | . . 2 . 1 . Recyclers Shooed 4 | . 2 . 1 1 . Parts Field Recycled . | . . . . . . Retrieved Matter . | . . . . . . Parts Self-Destructed . | . . . . . . Prevented . | . . . . . . Kills | -11 -10 -9 -9 -8 -8 ------- Run | Jun Mat Mat Min Mat Gar Combat Hostiles Destroyed 69 | . 6 16 14 28 5 Melee 5 | . . . 4 1 . Guns 50 | . 3 16 2 25 4 Cannons 5 | . . . 5 . . AOE 7 | . 3 . 3 . 1 Classes Destroyed 16 | . 7 4 2 3 . Worker 4 | . . 2 1 1 . Builder 3 | . . 2 . 1 . Tunneler 1 | . 1 . . . . Hauler 3 | . . 2 . 1 . Recycler 5 | . 3 . . 2 . Mechanic 1 | . 1 . . . . Operator 3 | . 2 1 . . . Watcher 7 | . 2 4 . 1 . Swarmer 16 | . 3 4 3 3 3 Grunt 26 | . 3 7 1 13 2 Brawler 1 | . . . . 1 . Duelist 1 | . . . . 1 . Sentry 13 | . . 5 . 8 . Demolisher 1 | . . . 1 . . Specialist 2 | . . . . 2 . Assembled 9 | . . . 9 . . Best Kill Streak 11 | . 11 4 8 6 3 Combat Bots Only 8 | . 5 4 8 5 3 Max Kills in Single Turn 2 | . 2 2 2 2 2 Gunslinging 1 | . . 1 . . 1 Exploded 1 | . 1 . 1 . 1 Melee 1 | . . . 1 1 . Uniques/NPCs Destroyed . | . . . . . . Combat | -11 -10 -9 -9 -8 -8 -------- Run | Jun Mat Mat Min Mat Gar Damage Taken 5574 | . 191 1024 1413 2457 489 Core 934 | . 44 58 278 396 158 Absorbed by Shields . | . . . . . . Ignored by Resistances 36 | . . 36 . . . Core Remaining (%) 66 | 100 82 . 16 . . Volleys Fired 238 | . 28 80 25 91 14 Largest 2 | . 2 2 2 2 2 Hottest 112 | . 70 106 112 68 73 Shots Fired 413 | . 52 157 31 148 25 Gun 382 | . 49 157 3 148 25 Cannon 20 | . . . 20 . . Launcher 11 | . 3 . 8 . . Special . | . . . . . . Kinetic 219 | . 25 69 3 111 11 Thermal 112 | . 24 88 . . . Explosive 11 | . 3 . 8 . . Electromagnetic 71 | . . . 20 37 14 Robot Hit Streak 30 | . 12 30 6 11 8 Robot Miss Streak 4 | . 4 3 4 4 3 Penetration Max 1 | . . . . 1 . Secondary Targets 6 | . . 3 . 2 1 Max Gunslinging Chain 1 | . . 1 . 1 1 Shots Hit Robots 312 | . 31 116 28 118 19 Core Hits 149 | . 21 42 21 56 9 Critical Kills 4 | . . . 1 3 . Critical Parts Destroyed 3 | . . . 1 2 . Critical Strikes 15 | . 1 6 2 6 . Burn 7 | . 1 6 . . . Destroy 5 | . . . . 5 . Smash 2 | . . . 2 . . Sever 1 | . . . . 1 . Melee Attacks 40 | . . . 16 21 3 Impact 25 | . . . 16 9 . Slashing 15 | . . . . 12 3 Piercing . | . . . . . . Sneak Attacks 4 | . . . 1 3 . Combat Hostiles . | . . . . . . Follow-up Attacks . | . . . . . . Damage Inflicted 7033 | . 909 1612 1171 2983 358 Guns 4539 | . 388 1567 27 2261 296 Cannons 287 | . . . 287 . . Explosions 1140 | . 521 . 447 141 31 Melee 1022 | . . . 410 581 31 Ramming 45 | . . 45 . . . Kinetic 2785 | . 210 714 27 1712 122 Thermal 1203 | . 178 853 . 141 31 Explosive 968 | . 521 . 447 . . Electromagnetic 1010 | . . . 287 549 174 Impact 618 | . . . 410 208 . Slashing 404 | . . . . 373 31 Piercing . | . . . . . . Highest Corruption 1 | . . . 1 1 1 Average Corruption 1 | . . . 1 1 1 Corruption Purged . | . . . . . . Corruption Blocked . | . . . . . . Effects 9 | . . . 2 5 2 Message Errors 2 | . . . 1 1 . Matter Fused 1 | . . . . 1 . Energy Discharges 1 | . . . . 1 . Parts Rejected 1 | . . . . 1 . Data Loss (minor) 1 | . . . . 1 . Data Loss (major) 1 | . . . . . 1 Misfires 1 | . . . 1 . . Weapon Failures 1 | . . . . . 1 Overload Shots . | . . . . . . Overflow Damage 192 | . 13 . 133 46 . Projectiles . | . . . . . . Explosions 34 | . 13 . 21 . . Melee 158 | . . . 112 46 . Knockbacks 2 | . . . 2 . . Impact 2 | . . . 2 . . Kinetic . | . . . . . . Secondary . | . . . . . . Self-Inflicted Damage 240 | . 70 . 119 . 51 Shots 7 | . 2 . 4 . 1 Rammed 9 | . . 9 . . . Targets Rammed 11 | . . 10 . 1 . Kicked 1 | . . . . 1 . Crushed 1 | . . 1 . . . Highest Temperature 122 | . 45 122 21 20 36 Average Temperature 17 | . 17 19 11 4 18 Received Heat Transfer 1708 | . 51 402 94 1098 63 Siege Activations . | . . . . . . Robots Corrupted 1 | . . . . 1 . Combat Hostiles 1 | . . . . 1 . Parts Fried 7 | . . . 1 6 . Impact Corruptions 7 | . . . 6 1 . Robots Melted . | . . . . . . Combat Hostiles . | . . . . . . Parts Melted 10 | . 1 9 . . . Heat Transferred 3715 | . 592 2923 . 150 50 Parts Sabotaged . | . . . . . . Parts Stolen . | . . . . . . Parts Stripped . | . . . . . . Power Chain Reactions 2 | . . . . 1 1 Missiles Intercepted . | . . . . . . Alert | -11 -10 -9 -9 -8 -8 ------- Run | Jun Mat Mat Min Mat Gar Peak Influence 321 | . 321 318 200 215 319 Initial 141 | . . 131 73 7 141 Average 144 | . 195 180 68 112 249 Maximum Alert Level 1 | . 1 1 1 1 1 Low Security (%) 71 | 100 49 64 98 82 18 Level 1 28 | . 50 35 1 17 81 Level 2 . | . . . . . . Level 3 . | . . . . . . Level 4 . | . . . . . . Level 5 . | . . . . . . High Security . | . . . . . . Max Security . | . . . . . . Squads Dispatched 11 | . 3 4 . 4 . Investigation 5 | . 1 3 . 1 . Extermination . | . . . . . . Reinforcement 6 | . 2 1 . 3 . Assault . | . . . . . . Garrison . | . . . . . . Intercept . | . . . . . . Searches Triggered . | . . . . . . Construction Impeded 1 | . . . . 1 . Haulers Reinforced . | . . . . . . Active Scanning Responses . | . . . . . . Cargo Convoy Interrupts . | . . . . . . Stealth | -11 -10 -9 -9 -8 -8 --------- Run | Jun Mat Mat Min Mat Gar Distress Signals 8 | . 2 3 1 2 . Communications Jammed 5 | . . . . . 5 Distress Signals 5 | . . . . . 5 Times Spotted 132 | . 19 29 38 38 8 Peak Tracking Total 17 | . 4 5 17 6 3 Tactical Retreats 9 | . . . 8 1 . Traps | -11 -10 -9 -9 -8 -8 ------- Run | Jun Mat Mat Min Mat Gar Traps Triggered 3 | . . 1 . . 2 Indirectly . | . . . . . . Trap Hack Attempts . | . . . . . . Triggered . | . . . . . . Disarmed . | . . . . . . Reprogrammed 4 | . . . . 4 . Reused . | . . . . . . Traps Extracted . | . . . . . . Installed . | . . . . . . Triggered . | . . . . . . Machines | -11 -10 -9 -9 -8 -8 ---------- Run | Jun Mat Mat Min Mat Gar Machines Disabled 4 | . 3 . . 1 . Max in Single Turn 1 | . 1 . . 1 . Machines Repaired . | . . . . . . Machines Sabotaged . | . . . . . . Overloaded Fab Kills . | . . . . . . Hacking | -11 -10 -9 -9 -8 -8 --------- Run | Jun Mat Mat Min Mat Gar Machines Accessed 23 | . 2 10 . 10 1 Terminals 18 | . 2 6 . 9 1 Fabricators . | . . . . . . Repair Stations . | . . . . . . Recycling Units 2 | . . 2 . . . Scanalyzers 2 | . . 2 . . . Garrison Access 1 | . . . . 1 . Total Hacks 75 | . 7 34 . 31 3 Successful 37 | . 2 17 . 18 . Failed 38 | . 5 17 . 13 3 Catastrophic 4 | . . 2 . 2 . Database Lockouts . | . . . . . . Manual 54 | . 7 25 . 22 . Terminals 63 | . 7 23 . 30 3 Fabricators . | . . . . . . Repair Stations . | . . . . . . Recycling Units 6 | . . 6 . . . Scanalyzers 5 | . . 5 . . . Garrison Access 1 | . . . . 1 . Terminal Hacks 16 | . . 6 . 10 . Part Schematic 2 | . . . . 2 . Robot Schematic 4 | . . 2 . 2 . Robot Analysis 1 | . . . . 1 . Branch Access Points 1 | . . 1 . . . Terminal Index 1 | . . . . 1 . Alert Level 1 | . . . . 1 . Unreport Threat 2 | . . 1 . 1 . Locate Traps 1 | . . 1 . . . Reprogram Traps 2 | . . . . 2 . Recall Investigation 1 | . . 1 . . . Fabricator Hacks . | . . . . . . Repair Station Hacks . | . . . . . . Recycling Unit Hacks 2 | . . 2 . . . Retrieve Components 2 | . . 2 . . . Scanalyzer 2 | . . 2 . . . Insert Component 1 | . . 1 . . . Analyze 1 | . . 1 . . . Garrison Access Hacks 1 | . . . . 1 . Unlock Access 1 | . . . . 1 . Unauthorized Hacks 16 | . 2 7 . 7 . Terminals 14 | . 2 5 . 7 . Assimilate 4 | . 1 . . 3 . Botnet 8 | . 1 4 . 3 . Operators 2 | . . 1 . 1 . Fabricators . | . . . . . . Repair Stations . | . . . . . . Recycling Units . | . . . . . . Scanalyzers 2 | . . 2 . . . Extract 2 | . . 2 . . . Garrison Access . | . . . . . . Data Cores Recovered . | . . . . . . Used . | . . . . . . Hacking Detections 16 | . 2 5 . 8 1 Full Trace Events 4 | . 1 . . 2 1 Feedback Events 1 | . . . . 1 . Corruption 1 | . . . . 1 . Feedback Blocked . | . . . . . . Robot Schematics Acquired 4 | . . 2 . 2 . Robots Built . | . . . . . . Authchips . | . . . . . . Time . | . . . . . . Total Robot Build Rating . | . . . . . . Part Schematics Acquired 6 | . . 4 . 2 . Parts Built . | . . . . . . Authchips . | . . . . . . Time . | . . . . . . Total Part Build Rating . | . . . . . . Parts Repaired . | . . . . . . Time . | . . . . . . Parts Recycled . | . . . . . . Recycled Matter . | . . . . . . Retrieved Matter . | . . . . . . Retrieved Components 4 | . . 4 . . . Parts Scanalyzed 1 | . . 1 . . . Part Schematics Acquired 1 | . . 1 . . . Parts Damaged . | . . . . . . Bothacking | -11 -10 -9 -9 -8 -8 ------------ Run | Jun Mat Mat Min Mat Gar Used RIF Installer . | . . . . . . Robots Hacked . | . . . . . . Non-combat . | . . . . . . Combat . | . . . . . . Robot Hacks Applied . | . . . . . . Relay Couplers Released . | . . . . . . Fabnet Peak Effective % . | . . . . . . Robots Rewired . | . . . . . . Allies Hacked . | . . . . . . Hacks Repelled . | . . . . . . Allies | -11 -10 -9 -9 -8 -8 -------- Run | Jun Mat Mat Min Mat Gar Total Allies 3 | . . . 1 2 . Largest Group 2 | . . . 1 2 . Highest-Rated Group 31 | . . . 31 20 . Highest-Rated Ally 31 | . . . 31 10 . Total Orders 2 | . . . . 2 . STAY 1 | . . . . 1 . FOLLOW 1 | . . . . 1 . Ally Attacks 6 | . . . 6 . . Total Damage 108 | . . . 108 . . Kills . | . . . . . . Allies Corrupted . | . . . . . . Allies Melted . | . . . . . . Intel | -11 -10 -9 -9 -8 -8 ------- Run | Jun Mat Mat Min Mat Gar Robot Analysis Total 1 | . . . . 1 . Derelict Logs Recovered 1 | . . . 1 . . Drone Launches . | . . . . . . Drone Recoveries . | . . . . . . Exploration | -11 -10 -9 -9 -8 -8 ------------- Run | Jun Mat Mat Min Mat Gar Turns Passed 4159 | 60 338 1474 581 1429 277 Spaces Moved 2120 | 48 238 701 352 669 112 Core 4 | 4 . . . . . Treads 863 | . . 565 106 192 . Legs 316 | . . . . 204 112 Wheels 937 | 44 238 136 246 273 . Hover . | . . . . . . Flight . | . . . . . . Fastest Speed 50 | 50 100 100 100 100 120 Average Speed 146 | 98 100 160 126 155 189 Slowest Speed 260 | 100 115 240 240 260 190 Overloaded Moves . | . . . . . . Propulsion Burnouts . | . . . . . . Robots Hopped . | . . . . . . Cave-ins Triggered . | . . . . . . Exploration Rate (%) 41 | 3 49 65 55 57 21 Regions Visited 5 Branch Regions 1 Pre-discovered Areas 1 | . . . 1 . . Known Exits Taken 2 | . . 1 . 1 . Unknown Exits Taken 3 | 1 1 . 1 . . Scrap Searched . | . . . . . . Spaces Dug 3 | . . . . 3 . Terrain Destroyed 98 | . 23 . 59 7 9 Melee 3 | . . . . 3 . Projectile 4 | . . . . 4 . AOE 91 | . 23 . 59 . 9 Terrain Rammed . | . . . . . . Walls Destroyed . | . . . . . . Machines Disabled . | . . . . . . Actions | -11 -10 -9 -9 -8 -8 --------- Run | Jun Mat Mat Min Mat Gar Total 2673 | 57 284 893 426 866 147 Wait 116 | . 12 54 15 31 4 Move 2116 | 47 237 700 351 669 112 Hop . | . . . . . . Pick Up 40 | 4 2 15 2 16 1 Fast Attach 29 | 6 2 4 4 13 . Attach 21 | . . 5 6 9 1 Detach 1 | . . 1 . . . Swap 32 | . 2 14 7 7 2 Drop 19 | . 1 10 . 8 . Fire 238 | . 28 80 25 91 14 Melee 40 | . . . 16 21 3 Ram . | . . . . . . Kick 1 | . . . . 1 . Crush 10 | . . 10 . . . Escape Stasis 10 | . . . . . 10 Rewire . | . . . . . . Trap . | . . . . . . Miscellaneous . | . . . . . . Route ------- -11/Junkyard -10/Materials -9/Materials (discovered 3 exits: *Mat x2 / *Min) -9/Mines (discovered 2 exits: *Mat / [*Zio]) -8/Materials (discovered 2 exits: *Fac / Gar) -8/Garrison History --------- Turn | Location | Event 9 | -11/Junkyard | Discovered new exit (range 15) 61 | -11/Junkyard | Entered Materials 248 | -10/Materials | Discovered new exit (range 15) 309 | -10/Materials | Build established: Mutant 399 | -10/Materials | Entered another Materials area 399 | -9/Materials | Evolved 2 slots: Utility x2 599 | -9/Materials | Discovered new exit (range 10) 826 | -9/Materials | Build established: Scavenger-Mutant 1043 | -9/Materials | Identified exit to Mines 1314 | -9/Materials | Discovered new exit (range 15) 1372 | -9/Materials | Build established: Mutant 1817 | -9/Materials | Build established: Hacker-Mutant 1873 | -9/Materials | Entered Mines 1874 | -9/Mines | Assembled infested the area 1875 | -9/Mines | Met a Derelict bent on vengeance 1879 | -9/Mines | Assisted by a Guerilla fighting off Assembled 1927 | -9/Mines | Core integrity fell below 50% 1956 | -9/Mines | Lost 7 parts (1p2n2u2w) 1969 | -9/Mines | Destroyed 8 combat bots 2050 | -9/Mines | A Derelict revealed a hidden shortcut to a safe place 2133 | -9/Mines | Received a Mining Laser from a helpful Derelict 2280 | -9/Mines | Core integrity fell below 20% 2311 | -9/Mines | Learned location of Storage (-7) 2407 | -9/Mines | Discovered new exit (range 13) 2454 | -9/Mines | Entered Materials 2454 | -8/Materials | Evolved 2 slots: Utility x2 3259 | -8/Materials | Build established: Scavenger-Mutant 3325 | -8/Materials | Core integrity fell below 50% 3372 | -8/Materials | Lost 9 parts (2p1n4u2w) 3496 | -8/Materials | Discovered new exit (range 17) 3608 | -8/Materials | Identified exit to Factory 3883 | -8/Materials | Identified exit to Garrison 3883 | -8/Materials | Entered Garrison 3978 | -8/Garrison | Triggered checkpoint 4153 | -8/Garrison | Core integrity fell below 20% 4160 | -8/Garrison | Destroyed by D-53 Grenadier with Mini Grenade Launcher Last Messages --------------- 04043_ Field strength at 25. 04044_ Field strength at 10. 04045_ Stasis field depleted. 04059_ Connecting with Garrison Terminal... 04059_ ALERT: Suspicious activity at Terminal G003. Transmitting hostile system tracking data. 04072_ System corrupted: Substantial component data lost. 04091_ Acquired Aluminum Leg. Garrison Door activated. 04141_ Slug penetrates Reinforced Barrier. 04152_ Imp. Carbon-fiber Leg destroyed. 04154_ Imp. Deuterium Engine destroyed. 04156_ I-25 Savior distress signal jammed. 04157_ The unstable cave ceiling collapses. 04157_ I-25 Savior distress signal jammed. 04157_ Penetrated by Slug. 04158_ Shock Rifle destroyed. 04158_ I-25 Savior distress signal jammed. 04160_ Penetrated by Slug. 04160_ Imp. Carbon-fiber Leg destroyed. Map ----- +----------------------------------------------------+ | ?????????????????????????????????????????????????? | | ?????????????????????????????????????????????????? | | ?????????????????????????????????????????????????? | | ????????????????????????###??????????????????????? | | ???????????????????????? ?????????????????????? | | ???????????????????????? ?????????????????????? | | ???????????????????????? ?????????????????????? | | ???????????????????????? #?????????????????????? | | ???????????????????????# ##????????????????????? | | ??????????????????????? ?????????????????????? | | ??????????????????????? ?????????????????????? | | ??????????????????????? ?????????????????????? | | ??????????????????????? ?????????????????????? | | ???????????????????????# #?????????????????????? | | ??????????????????????## #?????####????????????? | | ??????????????????????? ????? #????????????? | | ??????????????????????? ?????? #????????????? | | ??????????????????????? ??????# #????????????? | | ???????????????????????# h#??????# #????????????? | | ???????????????????????# #?????## #????????????? | | ???????????????????????# #???? ## #????????##### | | ???????????????????????# ##### ## #???###### # | | ??????????????????????## ?# #####""*## # | | ?????????????????????## #??# # "= !%[ | | ?????????????????????# d #??# ####"%""###### | | ?????????????????????## @ #### #?# "["##????? | | ?????????????????????# ##### ##?????? | | ?????????????????????###i #??????? | | ?????????????????????? #### #######??????? | | ?????????????????????## # #??# #????????????? | | ??????????????????????## #??# #????????????? | | ???????????????????????# #??# #????????????? | | ???????????????????????" "??# #????????????? | | ???????????????????????! ]"?# #????????????? | | ??????????????????????"[ #### !"## =############## | | ??????????????????????"! ???? ]"##==%= # | | ?????????????????????#"] ???? ="## %[* # | | ?????????????????????#"] ???? ["############## # | | ?????????????????????#"! ?????!"#????????????# # | | ??????????????????????"" ?????""#????????????##### | | ??????????????????????"""?????""#????????????????? | | ??????????????????????"""????????????????????????? | | ?????????????????????????????????????????????????? | | ?????????????????????????????????????????????????? | | ?????????????????????????????????????????????????? | | ?????????????????????????????????????????????????? | | ?????????????????????????????????????????????????? | | ?????????????????????????????????????????????????? | | ?????????????????????????????????????????????????? | | ?????????????????????????????????????????????????? | +----------------------------------------------------+ Best States ------------- Heat Dissipation 58 Energy Generation 18 Energy Capacity 290 Matter Stores 300 Matter Capacity 300 Sight Range 20 Terrain Scan Density 10 Jamming Range 12 Armor Coverage 450 Resistance: KI 20 Evasion (%) 40 Armor Integrity Analysis 30 Recoil Reduction 2 Offensive Hacking 20 Defensive Hacking 10 Item Schematics ----------------- Hcp. Storage Unit | -9/Materials | Scanalyzed VTOL Module | -9/Materials | Extracted Arm. Wheel | -9/Materials | Extracted Med. Armor Plating | -9/Materials | Extracted Hacking Suite | -8/Materials | Hacked System Shield | -8/Materials | Hacked Robot Schematics ------------------ I-25 Savior | -9/Materials | Hacked M-13 Machinist | -9/Materials | Hacked O-24 Administrator | -8/Materials | Hacked M-28 Smith | -8/Materials | Hacked Fabricated ------------ Nothing Alien Tech Used ----------------- None Achievements -------------- None Challenges ------------ None Game ------ Seed SalvageDeliveryAnalyzer Manual? 0 Play Time 00:36:04 Cumulative 359.8 hours Start 2023.09.24 @ 13:34:08 End 2023.09.24 @ 14:10:06 Sessions 1 Manual Loads 0 Difficulty Rogue Special Mode None Game No. 227 Rogue 224 Adventurer 3 Explorer 0 Win Type - Total 7 Types 6/0/1/0/0/0/0/0/0 Lore% 69 Gallery% 75 Achievement% 66 Wizard Run 0 Options --------- ASCII 0 Keyboard 0 Movement Numpad Keybinds 0 Fullscreen 1 Font 18/SmallcapsGlow Map View 76x50 Tactical HUD 1 Map Filters NONE Filters NONE Steam 1 RUN: 8b8dc011-6bb5-4efb-8e05-8aeefcf5a53d